fUST/lending_fUST_20240924
["ID","MTS","AMOUNT","RATE_DAILY","PERIOD"]
[339021603,1727130703201,-1276.93849084,0.00036027,30]
[339021604,1727130703210,-1463.75279927,0.00036027,30]
[339021605,1727130703219,-1845.14579378,0.00036027,30]
[339021606,1727130703228,-612.39783799,0.00036027,30]
[339021607,1727130703238,-1266.2470009,0.00036027,30]
[339021608,1727130703246,-1200.72,0.00036027,30]
[339021609,1727130703256,-502.0564616,0.00036027,30]
[339021610,1727130703265,-1081.80884902,0.00036027,30]
[339021611,1727130703275,-1820.90734948,0.00036027,7]
[339021612,1727130703284,-694.34500594,0.00036027,30]
[339021613,1727130703293,-1532.59375308,0.00036027,30]
[339021614,1727130703302,-151.0,0.00036027,120]
[339021615,1727130703312,-208.111508,0.00036082,2]
[339021616,1727130703321,-1618.417369,0.00036082,2]
[339021617,1727130703330,-1509.279157,0.00036082,2]
[339021618,1727130703340,-839.352758,0.00036082,2]
[339021619,1727130703349,-585.313618,0.00036082,2]
[339021620,1727130703359,-451.959178,0.00036082,2]
[339021621,1727130703368,-315.419004,0.00036082,2]
[339021622,1727130703377,-193.69679,0.00036082,2]
[339021623,1727130703387,-156.083631,0.00036082,2]
[339021624,1727130703397,-420.0,0.000361,120]
[339021625,1727130703406,-687.6,0.0003615,15]
[339021626,1727130703415,-421.63116,0.00036164,2]
[339021627,1727130703424,-186.188012,0.00036164,2]
[339021628,1727130703434,-168.652464,0.00036164,2]
[339021629,1727130703442,-403.53498,0.00036164,2]
[339021630,1727130703452,-325.174231,0.00036164,2]
[339021631,1727130703461,-169.231416,0.00036164,2]
[339021632,1727130703470,-600.0,0.0003619,2]
[339021633,1727130703480,-712.0,0.00036253,2]
[339021634,1727130703489,-712.0,0.00036253,2]
[339021635,1727130703498,-600.0,0.00036278,120]
[339021636,1727130703508,-7357.12,0.000363,14]
[339021637,1727130703517,-1966.29,0.000363,14]
[339021638,1727130703526,-3008.61,0.000363,14]
[339021639,1727130703537,-6999.8188029,0.00036306,54]
[339021640,1727130703546,-5000.0,0.00036306,56]
[339021641,1727130703555,-5000.0,0.00036306,56]
[339021642,1727130703565,-5000.0,0.00036306,53]
[339021643,1727130703574,-5000.0,0.00036306,55]
[339021644,1727130703583,-3113.27289669,0.0003645,60]
[339021645,1727130703593,-161.413993,0.00036517,2]
[339021646,1727130703602,-170.775881,0.00036517,2]
[339021647,1727130703611,-194.455579,0.00036517,2]
[339021648,1727130703620,-208.111508,0.00036517,2]
[339021649,1727130703629,-1618.417369,0.00036517,2]
[339021650,1727130703638,-1509.279157,0.00036517,2]
[339021651,1727130703647,-839.352758,0.00036517,2]
[339021652,1727130703657,-585.313618,0.00036517,2]
[339021653,1727130703666,-451.959178,0.00036517,2]
[339021654,1727130703676,-315.419004,0.00036517,2]
[339021655,1727130703685,-193.69679,0.00036517,2]
[339021656,1727130703694,-156.083631,0.00036517,2]
[339021657,1727130703703,-5000.0,0.00036531,14]
[339021658,1727130703712,-600.0,0.00036567,2]
[339021659,1727130703722,-421.63116,0.00036616,2]
[339021660,1727130703731,-168.652464,0.00036616,2]
[339021661,1727130703740,-403.53498,0.00036616,2]
[339021662,1727130703749,-325.174231,0.00036616,2]
[339021663,1727130703758,-3000.0,0.00036653,5]
[339021664,1727130703767,-600.0,0.00036654,120]
[339021665,1727130703777,-600.0,0.00036654,120]
[339021666,1727130703787,-600.0,0.00036674,120]
[339021667,1727130703796,-600.0,0.00036674,120]
[339021668,1727130703805,-600.0,0.00036674,120]
[339021669,1727130703815,-687.6,0.00036703,15]
[339021670,1727130703824,-600.0,0.00036734,120]
[339021671,1727130703837,-600.0,0.00036734,120]
[339021672,1727130703846,-600.0,0.00036849,120]
[339021673,1727130703855,-600.0,0.00036849,120]
[339021674,1727130703864,-177.0,0.0003693,35]
[339021675,1727130703874,-600.0,0.00036944,2]
[339021676,1727130703883,-500.0,0.00036986,10]
[339021677,1727130703894,-1000.0,0.00036986,30]
[339021678,1727130703905,-30000.0,0.00037,4]
[339021679,1727130703914,-4283.77322962,0.00037,30]
[339021680,1727130703923,-1000.0,0.00037,30]
[339021681,1727130703933,-1005.0,0.00037,30]
[339021682,1727130703943,-300.0,0.00037,14]
[339021683,1727130703952,-300.0,0.00037,14]
[339021684,1727130703960,-4455.04562188,0.00037,2]
[339021685,1727130703970,-600.0,0.00037054,120]
[339021686,1727130703979,-600.0,0.00037054,120]
[339021687,1727130703988,-600.0,0.00037054,120]
[339021688,1727130703997,-600.0,0.00037054,120]
[339021689,1727130704006,-421.63116,0.00037068,2]
[339021690,1727130704015,-168.652464,0.00037068,2]
[339021691,1727130704025,-403.53498,0.00037068,2]
[339021692,1727130704035,-325.174231,0.00037068,2]
[339021693,1727130704044,-859.13271159,0.00037141,120]
[339021694,1727130704054,-600.0,0.00037141,120]
[339021695,1727130704063,-600.0,0.00037141,120]
[339021696,1727130704073,-600.0,0.00037141,120]
[339021697,1727130704082,-600.0,0.00037157,120]
[339021698,1727130704091,-617.99440258,0.00037157,120]
[339021699,1727130704101,-236.42843406,0.000372,6]
[339021700,1727130704111,-600.0,0.00037205,120]
[339021701,1727130704121,-600.0,0.00037205,120]
[339021702,1727130704131,-600.0,0.00037205,120]
[339021703,1727130704141,-600.0,0.00037205,120]
[339021704,1727130704150,-10000.0,0.0003725,4]
[339021705,1727130704159,-687.6,0.00037255,15]
[339021706,1727130704168,-1000.0,0.0003726,30]
[339021707,1727130704178,-712.0,0.0003726,2]
[339021708,1727130704188,-157.46,0.000373,30]
[339021709,1727130704197,-151.84,0.000373,14]
[339021710,1727130704207,-7357.12,0.000373,14]
[339021711,1727130704216,-1966.29,0.000373,14]
[339021712,1727130704225,-3008.61,0.000373,14]
[339021713,1727130704234,-412.59677414,0.00037318,2]
[339021714,1727130704243,-600.0,0.00037321,2]
[339021715,1727130704252,-152.4214944,0.00037336,21]
[339021716,1727130704261,-1613.0,0.00037419,2]
[339021717,1727130704271,-5000.0,0.000375,40]
[339021718,1727130704280,-421.63116,0.0003752,2]
[339021719,1727130704289,-168.652464,0.0003752,2]
[339021720,1727130704299,-403.53498,0.0003752,2]
[339021721,1727130704308,-325.174231,0.0003752,2]
[339021722,1727130704317,-1000.0,0.00037534,30]
[339021723,1727130704326,-3500.0,0.00037577,5]
[339021724,1727130704336,-712.0,0.00037596,2]
[339021725,1727130704345,-400.0,0.000376,60]
[339021726,1727130704354,-500.0,0.000376,2]
[339021727,1727130704363,-2000.0,0.00037698,5]
[339021728,1727130704372,-600.0,0.00037698,2]
[339021729,1727130704382,-1000.0,0.00037798,3]
[339021730,1727130704391,-36528.6299486,0.000378,60]
[339021731,1727130704401,-420.0,0.000378,120]
[339021732,1727130704410,-500.0,0.00037808,30]
[339021733,1727130704419,-500.0,0.00037808,30]
[339021734,1727130704429,-1000.0,0.00037808,30]
[339021735,1727130704438,-687.6,0.00037808,15]
[339021736,1727130704447,-500.0,0.00037808,5]
[339021737,1727130704456,-500.0,0.00037808,5]
[339021738,1727130704466,-500.0,0.00037808,5]
[339021739,1727130704475,-521.12106535,0.00037866,60]
[339021740,1727130704484,-5000.0,0.00037866,61]
[339021741,1727130704493,-5000.0,0.00037866,59]
[339021742,1727130704502,-120824.67180884,0.000379,2]
[339021743,1727130704511,-500.0,0.00037945,30]
[339021744,1727130704521,-500.0,0.00037945,30]
[339021745,1727130704531,-421.63116,0.00037972,2]
[339021746,1727130704540,-186.188012,0.00037972,2]
[339021747,1727130704549,-168.652464,0.00037972,2]
[339021748,1727130704558,-403.53498,0.00037972,2]
[339021749,1727130704567,-325.174231,0.00037972,2]
[339021750,1727130704576,-69098.8500477,0.00038,30]
[339021751,1727130704587,-1003.22,0.00038,120]
[339021752,1727130704596,-2000.0,0.00038,120]
[339021753,1727130704606,-300.0,0.00038,15]
[339021754,1727130704615,-300.0,0.00038,15]
[339021755,1727130704625,-600.0,0.00038075,2]
[339021756,1727130704634,-500.0,0.00038082,30]
[339021757,1727130704644,-500.0,0.00038082,30]
[339021758,1727130704653,-1000.0,0.00038082,30]
[339021759,1727130704662,-152.18,0.000382,31]
[339021760,1727130704672,-152.18,0.000382,31]
[339021761,1727130704681,-500.0,0.00038219,30]
[339021762,1727130704690,-500.0,0.00038219,30]
[339021763,1727130704700,-712.0,0.00038267,2]
[339021764,1727130704709,-13188.46,0.000383,4]
[339021765,1727130704719,-13279.179999,0.000383,5]
[339021766,1727130704728,-500.0,0.00038356,120]
[339021767,1727130704738,-500.0,0.00038356,120]
[339021768,1727130704747,-1000.0,0.00038356,120]
[339021769,1727130704756,-160.0,0.00038448,4]
[339021770,1727130704766,-600.0,0.00038452,2]
[339021771,1727130704775,-1636.82484567,0.00038483,67]
[339021772,1727130704784,-1420.84731036,0.00038484,56]
[339021773,1727130704794,-500.0,0.00038493,120]
[339021774,1727130704804,-500.0,0.00038493,120]
[339021775,1727130704813,-4000.0,0.00038533,5]
[339021776,1727130704823,-151.0,0.00038548,120]
[339021777,1727130704836,-517.0,0.000386,2]
[339021778,1727130704845,-500.0,0.0003863,10]
[339021779,1727130704855,-500.0,0.0003863,120]
[339021780,1727130704864,-500.0,0.0003863,120]
[339021781,1727130704874,-1000.0,0.0003863,120]
[339021782,1727130704883,-254.80138082,0.00038655,3]
[339021783,1727130704893,-2682.4681908,0.000387,30]
[339021784,1727130704903,-5163.12790491,0.00038716,64]
[339021785,1727130704913,-502.40698252,0.00038767,120]
[339021786,1727130704923,-500.0,0.00038767,120]
[339021787,1727130704934,-600.0,0.00038829,2]
[339021788,1727130704946,-1517.16299454,0.000389,30]
[339021789,1727130704955,-500.0,0.00038904,120]
[339021790,1727130704964,-1000.0,0.00038904,120]
[339021791,1727130704974,-262.775317,0.00038933,2]
[339021792,1727130704984,-712.0,0.00038939,14]
[339021793,1727130704993,-3944.88812504,0.00039,2]
[339021794,1727130705003,-378.0,0.00039,17]
[339021795,1727130705013,-300.0,0.00039,17]
[339021796,1727130705022,-300.0,0.00039,17]
[339021797,1727130705032,-27581.34591238,0.00039,2]
[339021798,1727130705041,-150.0,0.00039007,2]
[339021799,1727130705051,-522.0,0.00039007,2]
[339021800,1727130705060,-1216.0,0.00039007,2]
[339021801,1727130705069,-500.0,0.00039041,120]
[339021802,1727130705078,-151.0,0.00039041,120]
[339021803,1727130705088,-177.0,0.0003908,40]
[339021804,1727130705097,-500.0,0.00039178,120]
[339021805,1727130705107,-1000.0,0.00039178,120]
[339021806,1727130705116,-877.1631875,0.00039206,2]
[339021807,1727130705125,-712.0,0.00039274,14]
[339021808,1727130705135,-500.0,0.00039315,120]
[339021809,1727130705144,-503.06173715,0.00039452,120]
[339021810,1727130705154,-2000.0,0.00039452,120]
[339021811,1727130705166,-1000.0,0.00039452,120]
[339021812,1727130705175,-420.0,0.000395,120]
[339021813,1727130705185,-4398.42,0.00039501,30]
[339021814,1727130705194,-4500.0,0.00039517,5]
[339021815,1727130705203,-412.59677414,0.00039609,2]
[339021816,1727130705212,-500.0,0.00039698,5]
[339021817,1727130705221,-500.0,0.00039698,5]
[339021818,1727130705231,-1000.0,0.00039726,120]
[339021819,1727130705240,-564.42,0.00039726,60]
[339021820,1727130705249,-564.42,0.00039726,60]
[339021821,1727130705258,-564.42,0.00039726,60]
[339021822,1727130705268,-564.42,0.00039726,60]
[339021823,1727130705277,-564.42,0.00039726,60]
[339021824,1727130705286,-564.42,0.00039726,60]
[339021825,1727130705295,-564.42,0.00039726,60]
[339021826,1727130705304,-564.42,0.00039726,60]
[339021827,1727130705314,-564.42,0.00039726,60]
[339021828,1727130705323,-564.42,0.00039726,60]
[339021829,1727130705333,-564.42,0.00039726,60]
[339021830,1727130705343,-564.42,0.00039726,60]
[339021831,1727130705352,-564.42,0.00039726,60]
[339021832,1727130705361,-564.42,0.00039726,60]
[339021833,1727130705370,-564.42,0.00039726,60]
[339021834,1727130705380,-564.42,0.00039726,60]
[339021835,1727130705389,-564.42,0.00039726,60]
[339021836,1727130705399,-564.42,0.00039726,60]
[339021837,1727130705408,-564.42,0.00039726,60]
[339021838,1727130705420,-564.42,0.00039726,60]
[339021839,1727130705430,-564.42,0.00039726,60]
[339021840,1727130705439,-564.42,0.00039726,60]
[339021841,1727130705449,-564.42,0.00039726,60]
[339021842,1727130705458,-564.5210678,0.00039726,60]
[339021843,1727130705467,-925.70396869,0.00039749,2]
[339021844,1727130705476,-180.02277775,0.00039999,31]
[339021845,1727130705486,-180.02277775,0.00039999,31]
[339021846,1727130705629,-180.02277775,0.00039999,31]
[339021847,1727130705638,-212.40884763,0.00039999,31]
[339021848,1727130705648,-500.0,0.00039999,31]
[339021849,1727130705658,-162.79788991,0.00039999,31]
[339021850,1727130705667,-427.19614664,0.00039999,31]
[339021851,1727130705677,-649.56593534,0.00039999,31]
[339021852,1727130705686,-500.0,0.00039999,31]
[339021853,1727130705696,-500.0,0.00039999,31]
[339021854,1727130705705,-500.0,0.00039999,31]
[339021855,1727130705714,-500.0,0.00039999,31]
[339021856,1727130705724,-459.91913769,0.00039999,31]
[339021857,1727130705734,-500.0,0.00039999,31]
[339021858,1727130705744,-500.0,0.00039999,31]
[339021859,1727130705754,-500.0,0.00039999,31]
[339021860,1727130705763,-500.0,0.00039999,31]
[339021861,1727130705772,-473.2745651,0.00039999,31]
[339021862,1727130705782,-500.0,0.00039999,31]
[339021863,1727130705792,-500.0,0.00039999,31]
[339021864,1727130705802,-500.0,0.00039999,31]
[339021865,1727130705811,-500.0,0.00039999,31]
[339021866,1727130705821,-500.0,0.00039999,31]
[339021867,1727130705833,-368.18913753,0.00039999,31]
[339021868,1727130705843,-500.0,0.00039999,31]
[339021869,1727130705853,-500.0,0.00039999,31]
[339021870,1727130705862,-500.0,0.00039999,31]
[339021871,1727130705871,-500.0,0.00039999,31]
[339021872,1727130705880,-500.0,0.00039999,31]
[339021873,1727130705889,-500.0,0.00039999,31]
[339021874,1727130705898,-500.0,0.00039999,31]
[339021875,1727130705908,-500.0,0.00039999,31]
[339021876,1727130705918,-500.0,0.00039999,31]
[339021877,1727130705928,-500.0,0.00039999,31]
[339021878,1727130705937,-500.0,0.00039999,31]
[339021879,1727130705946,-500.0,0.00039999,31]
[339021880,1727130705955,-500.0,0.00039999,31]
[339021881,1727130705964,-500.0,0.00039999,31]
[339021882,1727130705973,-500.0,0.00039999,31]
[339021883,1727130705982,-500.0,0.00039999,31]
[339021884,1727130705991,-500.0,0.00039999,31]
[339021885,1727130706000,-4144.9048785,0.0004,15]
[339021886,1727130706010,-2067.79046168,0.0004,30]
[339021887,1727130706019,-170.70312322,0.0004,120]
[339021888,1727130706028,-377.17068283,0.0004,120]
[339021889,1727130706038,-1513.0,0.0004,30]
[339021890,1727130706049,-7809.77984152,0.0004,2]
[339021891,1727130706058,-2000.0,0.0004,120]
[339021892,1727130706069,-160.0,0.0004,7]
[339021893,1727130706078,-5000.0,0.0004,50]
[339021894,1727130706087,-200.0,0.0004,120]
[339021895,1727130706097,-410.50836147,0.0004,120]
[339021896,1727130706106,-696.01110269,0.0004,120]
[339021897,1727130706115,-300.0,0.0004,19]
[339021898,1727130706125,-300.0,0.0004,19]
[339021899,1727130706134,-300.0,0.0004,19]
[339021900,1727130706144,-4409.01217049,0.0004,30]
[339021901,1727130706153,-10000.0,0.0004,30]
[339021902,1727130706163,-10000.0,0.0004,30]
[339021903,1727130706172,-10000.0,0.0004,30]
[339021904,1727130706182,-12894.92777313,0.0004,30]
[339021905,1727130706192,-1357.78678173,0.0004,30]
[339021906,1727130706201,-500.0,0.00040274,10]
[339021907,1727130706210,-712.0,0.00040281,14]
[339021908,1727130706220,-712.0,0.00040281,14]
[339021909,1727130706229,-1348.0,0.00040345,60]
[339021910,1727130706238,-22194.93853699,0.000405,18]
[339021911,1727130706247,-1822.86897263,0.00040526,5]
[339021912,1727130706256,-13279.179999,0.000406,6]
[339021913,1727130706266,-30017.0,0.000406,52]
[339021914,1727130706275,-4949.54208053,0.0004078,120]
[339021915,1727130706288,-44520.0,0.0004089,4]
[339021916,1727130706299,-400.0,0.00040952,2]
[339021917,1727130706309,-160.0,0.00040998,5]
[339021918,1727130706319,-315.45368105,0.00040998,5]
[339021919,1727130706329,-1000.0,0.00041,120]
[339021920,1727130706338,-1000.0,0.00041,120]
[339021921,1727130706348,-1013.2004,0.00041,120]
[339021922,1727130706358,-1000.0,0.00041,120]
[339021923,1727130706368,-1000.0,0.00041,120]
[339021924,1727130706377,-1000.0,0.00041,120]
[339021925,1727130706386,-1000.0,0.00041,120]
[339021926,1727130706396,-1000.0,0.00041,120]
[339021927,1727130706405,-1000.0,0.00041,120]
[339021928,1727130706414,-971.77933094,0.00041,120]
[339021929,1727130706424,-13279.179999,0.00041,7]
[339021930,1727130706434,-5009.57411602,0.00041,120]
[339021931,1727130706443,-397.754252,0.00041,120]
[339021932,1727130706453,-1000.0,0.00041,120]
[339021933,1727130706462,-300.0,0.00041,21]
[339021934,1727130706471,-300.0,0.00041,21]
[339021935,1727130706481,-300.0,0.00041,21]
[339021936,1727130706490,-4408.0,0.00041,30]
[339021937,1727130706500,-10000.0,0.00041,30]
[339021938,1727130706510,-10000.0,0.00041,30]
[339021939,1727130706519,-10000.0,0.00041,30]
[339021940,1727130706529,-12893.0,0.00041,30]
[339021941,1727130706538,-1357.0,0.00041,30]
[339021942,1727130706550,-152.0,0.00041041,31]
[339021943,1727130706559,-5000.0,0.00041095,120]
[339021944,1727130706568,-5000.0,0.00041095,120]
[339021945,1727130706578,-5000.0,0.00041095,120]
[339021946,1727130706587,-5000.0,0.00041095,120]
[339021947,1727130706596,-2258.00658462,0.00041095,120]
[339021948,1727130706606,-500.0,0.00041095,30]
[339021949,1727130706615,-1000.0,0.00041095,80]
[339021950,1727130706625,-1002.16681756,0.00041095,84]
[339021951,1727130706634,-5000.0,0.000411,120]
[339021952,1727130706644,-153.0,0.00041178,2]
[339021953,1727130706654,-281.9303923,0.00041178,2]
[339021954,1727130706664,-153.0,0.00041178,2]
[339021955,1727130706674,-153.0,0.00041178,2]
[339021956,1727130706684,-153.0,0.00041178,2]
[339021957,1727130706694,-417.7927401,0.00041178,2]
[339021958,1727130706703,-128560.67671965,0.000412,60]
[339021959,1727130706713,-420.0,0.000412,120]
[339021960,1727130706723,-177.0,0.0004123,44]
[339021961,1727130706733,-712.0,0.00041288,90]
[339021962,1727130706742,-152.0,0.00041361,31]
[339021963,1727130706752,-5000.0,0.000414,120]
[339021964,1727130706761,-3000.0,0.000414,42]
[339021965,1727130706771,-3000.0,0.00041436,42]
[339021966,1727130706780,-153.0,0.00041437,2]
[339021967,1727130706789,-153.0,0.00041437,2]
[339021968,1727130706799,-153.3493252,0.00041437,2]
[339021969,1727130706808,-153.0,0.00041437,2]
[339021970,1727130706817,-153.0,0.00041437,2]
[339021971,1727130706827,-153.0,0.00041437,2]
[339021972,1727130706838,-153.0,0.00041437,2]
[339021973,1727130706848,-153.0,0.00041437,2]
[339021974,1727130706857,-153.0,0.00041437,2]
[339021975,1727130706867,-153.0,0.00041437,2]
[339021976,1727130706876,-153.0,0.00041437,2]
[339021977,1727130706886,-153.0,0.00041437,2]
[339021978,1727130706895,-308.5398537,0.00041437,2]
[339021979,1727130706905,-3000.0,0.00041473,42]
[339021980,1727130706914,-1500.0,0.000415,120]
[339021981,1727130706923,-10750.0,0.000415,31]
[339021982,1727130706932,-3000.0,0.00041509,42]
[339021983,1727130706942,-208.977489,0.0004151,2]
[339021984,1727130706951,-208.977489,0.0004151,2]
[339021985,1727130706961,-208.977489,0.0004151,2]
[339021986,1727130706971,-153.0,0.0004151,2]
[339021987,1727130706981,-208.6141674,0.0004151,2]
[339021988,1727130706990,-153.3199713,0.0004151,2]
[339021989,1727130706999,-208.977489,0.0004151,2]
[339021990,1727130707009,-208.977489,0.0004151,2]
[339021991,1727130707018,-208.977489,0.0004151,2]
[339021992,1727130707027,-3000.0,0.00041545,42]
[339021993,1727130707036,-283.440768,0.00041553,120]
[339021994,1727130707045,-3000.0,0.00041582,42]
[339021995,1727130707055,-3000.0,0.00041618,42]
[339021996,1727130707064,-3000.0,0.00041655,42]
[339021997,1727130707073,-152.0,0.0004168,31]
[339021998,1727130707082,-500.0,0.00041683,30]
[339021999,1727130707092,-501.74106086,0.00041683,30]
[339022000,1727130707101,-3000.0,0.00041691,42]
[339022001,1727130707110,-153.0,0.00041696,2]
[339022002,1727130707121,-153.0,0.00041696,2]
[339022003,1727130707131,-208.6141674,0.00041696,2]
[339022004,1727130707141,-153.0,0.00041696,2]
[339022005,1727130707150,-5000.0,0.000417,120]
[339022006,1727130707159,-2682.4681908,0.000417,60]
[339022007,1727130707169,-3000.0,0.00041727,42]
[339022008,1727130707182,-2866.66117521,0.00041764,42]
[339022009,1727130707191,-40666.2856789,0.000419,30]
[339022010,1727130707200,-35063.93416806,0.000419,120]
[339022011,1727130707210,-412.59677414,0.000419,28]
[339022012,1727130707219,-500.0,0.00041918,30]
[339022013,1727130707228,-1000.0,0.00041999,120]
[339022014,1727130707237,-3701334.54640018,0.00042,30]
[339022015,1727130707246,-3246119.84009975,0.00042,30]
[339022018,1727130752569,817.86002883,0.00022001,2]
[339022019,1727130754793,500.0,0.00022001,2]
[339022020,1727130755164,500.0,0.00022001,2]
[339022021,1727130755518,500.0,0.00022001,2]
[339022022,1727130755902,500.0,0.00022001,2]
[339022023,1727130756340,500.0,0.00022001,2]
[339022024,1727130756659,500.0,0.00022001,2]
[339022025,1727130757006,869.03,0.00022001,2]
[339022026,1727130757565,514.99969714,0.00022001,2]
[339022030,1727130896872,167.87,0.00022001,2]
[339022032,1727131055915,15375.11,0.00025,120]
[339022044,1727131532159,-507.79719361,0.00023657,2]
[339022045,1727131546105,-1294.0799208,0.00023483,2]
[339022046,1727131546127,-68.94223282,0.00023657,2]
[339022050,1727131635106,-205.36006943,0.00023443,2]
[339022051,1727131648103,-44.63993057,0.00023443,2]
[339022052,1727131648124,-151.34866798,0.0002361,2]
[339022053,1727131648145,-48.88138994,0.00023657,2]
[339022054,1727131650113,-500.7334678,0.00023657,2]
[339022055,1727131650135,-493.196866,0.00024218,2]
[339022056,1727131650156,-493.196866,0.00024225,2]
[339022057,1727131650177,-493.196866,0.00024231,2]
[339022058,1727131650198,-250.22161702,0.00024237,2]
[339022059,1727131651138,-242.97524898,0.00024237,2]
[339022060,1727131651160,-493.196866,0.00024244,2]
[339022061,1727131651182,-493.196866,0.0002425,2]
[339022062,1727131651204,-493.196866,0.00024257,2]
[339022063,1727131651225,-493.196866,0.00024263,2]
[339022064,1727131651246,-493.196866,0.00024269,2]
[339022065,1727131651268,-493.196866,0.00024276,2]
[339022066,1727131651290,-493.196866,0.00024282,2]
[339022067,1727131651312,-493.196866,0.00024288,2]
[339022068,1727131651334,-493.196866,0.00024295,2]
[339022069,1727131651355,-493.196866,0.00024301,2]
[339022070,1727131651377,-493.196866,0.00024308,2]
[339022071,1727131651398,-493.196866,0.00024314,2]
[339022072,1727131651420,-493.196866,0.0002432,2]
[339022073,1727131651442,-300.0,0.00024326,2]
[339022074,1727131651471,-300.0,0.00024326,2]
[339022075,1727131651686,-29.94469893,0.00024327,2]
[339022080,1727131745099,-180.189163,0.00022819,2]
[339022081,1727131746116,-633.591743,0.00024129,2]
[339022082,1727131746137,-217.65390923,0.00024205,2]
[339022083,1727131749194,-250.0,0.00024131,2]
[339022084,1727131749218,-84.71119058,0.00024205,2]
[339022085,1727131749242,-463.25216707,0.00024327,2]
[339022086,1727131749264,-182.03664235,0.00024333,2]
[339022087,1727131759139,-250.0,0.00024197,2]
[339022088,1727131759163,-250.0,0.00024263,2]
[339022089,1727131759186,-250.0,0.00024329,2]
[339022090,1727131759208,-311.16022365,0.00024333,2]
[339022091,1727131759230,-493.196866,0.00024339,2]
[339022092,1727131759253,-250.0,0.00024395,2]
[339022093,1727131759274,-302.36509981,0.00024447,2]
[339022094,1727131759296,-250.0,0.00024461,2]
[339022095,1727131759318,-250.0,0.00024528,2]
[339022096,1727131759339,-250.0,0.00024594,2]
[339022097,1727131759360,-250.0,0.0002466,2]
[339022098,1727131759384,-302.36509981,0.00024689,2]
[339022099,1727131759408,-250.0,0.00024726,2]
[339022100,1727131759431,-250.0,0.00024792,2]
[339022101,1727131759455,-250.0,0.00024859,2]
[339022102,1727131759479,-209.52019566,0.000249,2]
[339022103,1727131759505,-250.0,0.00024925,2]
[339022104,1727131759529,-278.80318344,0.00024932,2]
[339022105,1727131759554,-250.0,0.00024991,2]
[339022106,1727131759578,-300.0,0.00024999,2]
[339022107,1727131759602,-300.0,0.00024999,2]
[339022108,1727131759626,-400.46601459,0.00025,30]
[339022109,1727131762114,-99.53398541,0.00025,30]
[339022110,1727131762138,-500.0,0.00025,30]
[339022111,1727131762160,-500.0,0.00025,30]
[339022112,1727131762183,-500.0,0.00025,30]
[339022113,1727131762206,-500.0,0.00025,30]
[339022114,1727131762228,-500.0,0.00025,30]
[339022115,1727131762251,-7.36286015,0.00025,30]
[339022116,1727131773112,-492.63713985,0.00025,30]
[339022117,1727131773135,-465.22628371,0.00025,30]
[339022118,1727131796954,215.18143539,0.00024287,2]
[339022119,1727131796974,1260.63512263,0.00024287,2]
[339022120,1727131824416,210.17038252,0.000238,2]
[339022121,1727131824436,265.6502856,0.000238,2]
[339022147,1727131832553,-24.17933188,0.000238,2]
[339022149,1727131832563,-239.05789511,0.000238,2]
[339022151,1727131832574,-260.94210489,0.000238,2]
[339022153,1727131832584,-500.0,0.000238,2]
[339022155,1727131832593,-500.0,0.000238,2]